[Event "Titled Tuesday Blitz March 07 Late 2023"]
[White "Almeida Quintana, Omar"]
[Black "Vaglio Munoz, Jaime"]
[WhiteFideId "3503313"]
[BlackFideId "6500145"]
[WhiteElo "2530"]
[BlackElo "2199"]
[Result "0-1"]
[Round "11"]
[TimeControl "180+2"]
[Date "2023.03.07"]
[WhiteClock "0:00:10"]
[BlackClock "0:00:22"]

1. d4 {[%clk 0:02:50]}  g6 {[%clk 0:02:59]} 2. c4 {[%clk 0:02:49]}  Bg7 {[%clk 0:02:59]} 3. Nf3 {[%clk 0:02:49]}  d6 {[%clk 0:03:00]} 4. Nc3 {[%clk 0:02:49]}  c5 {[%clk 0:03:00]} 5. d5 {[%clk 0:02:46]}  Bxc3+ {[%clk 0:03:00]} 6. bxc3 {[%clk 0:02:47]}  e5 {[%clk 0:03:01]} 7. e4 {[%clk 0:02:45]}  Nd7 {[%clk 0:02:58]} 8. h4 {[%clk 0:02:43]}  h6 {[%clk 0:02:55]} 9. h5 {[%clk 0:02:34]}  g5 {[%clk 0:02:48]} 10. Bd3 {[%clk 0:02:28]}  Qa5 {[%clk 0:02:29]} 11. Bd2 {[%clk 0:02:26]}  Nb6 {[%clk 0:02:27]} 12. a4 {[%clk 0:02:25]}  Ne7 {[%clk 0:02:13]} 13. Nh2 {[%clk 0:02:16]}  f5 {[%clk 0:02:05]} 14. exf5 {[%clk 0:02:02]}  Bxf5 {[%clk 0:02:06]} 15. Bxf5 {[%clk 0:02:00]}  Nxf5 {[%clk 0:02:07]} 16. Qb3 {[%clk 0:01:51]}  Qa6 {[%clk 0:01:50]} 17. a5 {[%clk 0:01:46]}  Qxc4 {[%clk 0:01:48]} 18. Qb1 {[%clk 0:01:44]}  Nh4 {[%clk 0:01:35]} 19. axb6 {[%clk 0:01:43]}  Nxg2+ {[%clk 0:01:35]} 20. Kd1 {[%clk 0:01:43]}  Qxd5 {[%clk 0:01:30]} 21. Qg6+ {[%clk 0:01:28]}  Ke7 {[%clk 0:01:22]} 22. Qg7+ {[%clk 0:01:21]}  Ke6 {[%clk 0:01:14]} 23. Rg1 {[%clk 0:00:58]}  Nf4 {[%clk 0:01:09]} 24. c4 {[%clk 0:00:22]}  Qd3 {[%clk 0:00:27]} 25. Rg3 {[%clk 0:00:18]}  Qe2+ {[%clk 0:00:27]} 26. Kc2 {[%clk 0:00:16]}  Qxc4+ {[%clk 0:00:26]} 27. Rc3 {[%clk 0:00:14]}  Qe4+ {[%clk 0:00:27]} 28. Kd1 {[%clk 0:00:12]}  Rh7 {[%clk 0:00:24]} 29. f3 {[%clk 0:00:10]}  Qe2+ {[%clk 0:00:22]} 0-1


[Site "https://www.chess.com"]

[Event "Titled Tuesday Blitz March 07 Late 2023"]
[White "Gubajdullin, Alexei"]
[Black "Marczuk, Dominik"]
[WhiteFideId "4141202"]
[BlackFideId "1111264"]
[WhiteElo "2267"]
[BlackElo "2174"]
[Result "1-0"]
[Round "11"]
[TimeControl "180+2"]
[Date "2023.03.07"]
[WhiteClock "0:02:46"]
[BlackClock "0:02:28"]

1. d4 {[%clk 0:03:00]}  Nf6 {[%clk 0:03:00]} 2. Nf3 {[%clk 0:02:58]}  g6 {[%clk 0:03:00]} 3. Bf4 {[%clk 0:02:59]}  Bg7 {[%clk 0:03:00]} 4. e3 {[%clk 0:03:00]}  O-O {[%clk 0:03:01]} 5. Be2 {[%clk 0:03:00]}  d6 {[%clk 0:03:01]} 6. O-O {[%clk 0:03:01]}  Nc6 {[%clk 0:03:01]} 7. h3 {[%clk 0:03:01]}  Nd7 {[%clk 0:02:58]} 8. Bh2 {[%clk 0:03:01]}  e5 {[%clk 0:02:59]} 9. a4 {[%clk 0:03:01]}  f5 {[%clk 0:02:58]} 10. a5 {[%clk 0:03:00]}  a6 {[%clk 0:02:57]} 11. c3 {[%clk 0:02:59]}  e4 {[%clk 0:02:58]} 12. Qb3+ {[%clk 0:02:58]}  Kh8 {[%clk 0:02:57]} 13. Nfd2 {[%clk 0:02:53]}  Qe7 {[%clk 0:02:50]} 14. c4 {[%clk 0:02:52]}  g5 {[%clk 0:02:43]} 15. Nc3 {[%clk 0:02:52]}  Nf6 {[%clk 0:02:42]} 16. Nd5 {[%clk 0:02:51]}  Nxd5 {[%clk 0:02:40]} 17. cxd5 {[%clk 0:02:51]}  Nd8 {[%clk 0:02:39]} 18. Rfc1 {[%clk 0:02:51]}  Bd7 {[%clk 0:02:31]} 19. Rxc7 {[%clk 0:02:49]}  Rc8 {[%clk 0:02:30]} 20. Rac1 {[%clk 0:02:49]}  Rxc7 {[%clk 0:02:28]} 21. Rxc7 {[%clk 0:02:48]}  Qe8 {[%clk 0:02:28]} 22. Bxd6 {[%clk 0:02:46]} 1-0


[Site "https://www.chess.com"]

[Event "Titled Tuesday Blitz March 07 Late 2023"]
[White "Hoffmann, Asa"]
[Black "Martinez Reyes, Pedro Ramon"]
[WhiteFideId "2001470"]
[BlackFideId "3901807"]
[WhiteElo "2117"]
[BlackElo "2340"]
[Result "0-1"]
[Round "11"]
[TimeControl "180+2"]
[Date "2023.03.07"]
[WhiteClock "0:00:23"]
[BlackClock "0:01:24"]

1. d4 {[%clk 0:02:55]}  d6 {[%clk 0:02:57]} 2. e4 {[%clk 0:02:54]}  g6 {[%clk 0:02:56]} 3. Be3 {[%clk 0:02:53]}  a6 {[%clk 0:02:55]} 4. Qd2 {[%clk 0:02:53]}  Bg7 {[%clk 0:02:55]} 5. Nc3 {[%clk 0:02:53]}  b5 {[%clk 0:02:55]} 6. a3 {[%clk 0:02:52]}  e6 {[%clk 0:02:54]} 7. f3 {[%clk 0:02:51]}  Ne7 {[%clk 0:02:54]} 8. h4 {[%clk 0:02:49]}  h5 {[%clk 0:02:53]} 9. Nh3 {[%clk 0:02:49]}  Bb7 {[%clk 0:02:53]} 10. Ng5 {[%clk 0:02:48]}  Nd7 {[%clk 0:02:53]} 11. g3 {[%clk 0:02:47]}  Nb6 {[%clk 0:02:53]} 12. b3 {[%clk 0:02:44]}  Qd7 {[%clk 0:02:52]} 13. Bh3 {[%clk 0:02:43]}  d5 {[%clk 0:02:43]} 14. e5 {[%clk 0:02:38]}  Nf5 {[%clk 0:02:37]} 15. Bf2 {[%clk 0:02:37]}  a5 {[%clk 0:02:29]} 16. O-O {[%clk 0:02:33]}  a4 {[%clk 0:02:30]} 17. Qd3 {[%clk 0:02:27]}  Ba6 {[%clk 0:02:24]} 18. b4 {[%clk 0:02:11]}  O-O-O {[%clk 0:02:24]} 19. Ne2 {[%clk 0:02:05]}  Kb7 {[%clk 0:02:23]} 20. c3 {[%clk 0:02:04]}  Nc4 {[%clk 0:02:22]} 21. Nf4 {[%clk 0:02:02]}  Ka7 {[%clk 0:02:20]} 22. Rfe1 {[%clk 0:01:59]}  Bc8 {[%clk 0:02:20]} 23. Bf1 {[%clk 0:01:49]}  Qe7 {[%clk 0:02:20]} 24. Qc2 {[%clk 0:01:42]}  Bh6 {[%clk 0:02:19]} 25. Nfh3 {[%clk 0:01:41]}  Bb7 {[%clk 0:02:18]} 26. Bd3 {[%clk 0:01:40]}  Rhe8 {[%clk 0:02:12]} 27. f4 {[%clk 0:01:36]}  Bc6 {[%clk 0:02:12]} 28. Kg2 {[%clk 0:01:34]}  Bg7 {[%clk 0:02:11]} 29. Ng1 {[%clk 0:01:33]}  Nh6 {[%clk 0:02:11]} 30. N1f3 {[%clk 0:01:32]}  Ng4 {[%clk 0:02:11]} 31. Bg1 {[%clk 0:01:31]}  Rf8 {[%clk 0:02:11]} 32. Nd2 {[%clk 0:01:22]}  Qd7 {[%clk 0:02:07]} 33. Nxc4 {[%clk 0:01:20]}  dxc4+ {[%clk 0:02:07]} 34. Be4 {[%clk 0:01:19]}  Bxe4+ {[%clk 0:02:05]} 35. Qxe4 {[%clk 0:01:17]}  Qd5 {[%clk 0:02:05]} 36. Qxd5 {[%clk 0:01:13]}  Rxd5 {[%clk 0:02:06]} 37. Kf3 {[%clk 0:01:10]}  Kb7 {[%clk 0:02:05]} 38. Re4 {[%clk 0:01:09]}  Kc6 {[%clk 0:02:05]} 39. Be3 {[%clk 0:01:06]}  Bh6 {[%clk 0:02:04]} 40. Bd2 {[%clk 0:01:05]}  Kd7 {[%clk 0:02:02]} 41. Rae1 {[%clk 0:01:03]}  Ke7 {[%clk 0:01:58]} 42. Nh7 {[%clk 0:01:02]}  Rh8 {[%clk 0:01:52]} 43. Ng5 {[%clk 0:01:01]}  Bxg5 {[%clk 0:01:46]} 44. fxg5 {[%clk 0:01:00]}  Rhd8 {[%clk 0:01:44]} 45. Rf4 {[%clk 0:01:00]}  Rxe5 {[%clk 0:01:39]} 46. Rxe5 {[%clk 0:00:55]}  Nxe5+ {[%clk 0:01:38]} 47. dxe5 {[%clk 0:00:47]}  Rxd2 {[%clk 0:01:39]} 48. Re4 {[%clk 0:00:43]}  Ra2 {[%clk 0:01:33]} 49. g4 {[%clk 0:00:39]}  Rxa3 {[%clk 0:01:31]} 50. Re3 {[%clk 0:00:38]}  hxg4+ {[%clk 0:01:28]} 51. Kxg4 {[%clk 0:00:38]}  Ra1 {[%clk 0:01:29]} 52. h5 {[%clk 0:00:32]}  Rg1+ {[%clk 0:01:28]} 53. Kh4 {[%clk 0:00:31]}  Rh1+ {[%clk 0:01:28]} 54. Kg4 {[%clk 0:00:31]}  gxh5+ {[%clk 0:01:29]} 55. Kf4 {[%clk 0:00:30]}  Rf1+ {[%clk 0:01:28]} 56. Kg3 {[%clk 0:00:29]}  Rd1 {[%clk 0:01:25]} 57. Kh4 {[%clk 0:00:28]}  Rd3 {[%clk 0:01:26]} 58. Re1 {[%clk 0:00:27]}  Rxc3 {[%clk 0:01:25]} 59. Kxh5 {[%clk 0:00:27]}  Rh3+ {[%clk 0:01:25]} 60. Kg4 {[%clk 0:00:26]}  Rb3 {[%clk 0:01:26]} 61. Rh1 {[%clk 0:00:24]}  a3 {[%clk 0:01:26]} 62. Rh7 {[%clk 0:00:23]}  a2 {[%clk 0:01:24]} 63. g6 {[%clk 0:00:23]}  a1=Q {[%clk 0:01:24]} 64. Rxf7+ {[%clk 0:00:23]}  Ke8 {[%clk 0:01:24]} 0-1


[Site "https://www.chess.com"]

[Event "Titled Tuesday Blitz March 07 Late 2023"]
[White "Gerbelli Neto, Eduardo"]
[Black "Sokolin, Leonid"]
[WhiteFideId "2103281"]
[BlackFideId "2009161"]
[WhiteElo "2178"]
[BlackElo "2394"]
[Result "0-1"]
[Round "11"]
[TimeControl "180+2"]
[Date "2023.03.07"]
[WhiteClock "0:01:03"]
[BlackClock "0:00:51"]

1. e4 {[%clk 0:03:00]}  c5 {[%clk 0:02:42]} 2. Nc3 {[%clk 0:02:58]}  Nc6 {[%clk 0:02:41]} 3. f4 {[%clk 0:02:58]}  g6 {[%clk 0:02:31]} 4. Nf3 {[%clk 0:02:58]}  Bg7 {[%clk 0:02:26]} 5. Bc4 {[%clk 0:02:59]}  e6 {[%clk 0:02:24]} 6. f5 {[%clk 0:02:59]}  gxf5 {[%clk 0:02:22]} 7. d3 {[%clk 0:02:59]}  Nge7 {[%clk 0:02:20]} 8. Bg5 {[%clk 0:02:55]}  h6 {[%clk 0:02:13]} 9. Bh4 {[%clk 0:02:55]}  Qc7 {[%clk 0:02:12]} 10. Nb5 {[%clk 0:02:47]}  Qa5+ {[%clk 0:02:10]} 11. c3 {[%clk 0:02:46]}  O-O {[%clk 0:02:09]} 12. Nd6 {[%clk 0:02:41]}  fxe4 {[%clk 0:01:59]} 13. dxe4 {[%clk 0:02:39]}  Ng6 {[%clk 0:01:59]} 14. Bg3 {[%clk 0:02:31]}  b5 {[%clk 0:01:38]} 15. Bxb5 {[%clk 0:02:18]}  Rb8 {[%clk 0:01:37]} 16. Bxc6 {[%clk 0:02:11]}  Rxb2 {[%clk 0:01:36]} 17. O-O {[%clk 0:01:56]}  Ba6 {[%clk 0:01:08]} 18. Qa4 {[%clk 0:01:24]}  Qxa4 {[%clk 0:00:59]} 19. Bxa4 {[%clk 0:01:25]}  Bxf1 {[%clk 0:00:58]} 20. Kxf1 {[%clk 0:01:22]}  Bxc3 {[%clk 0:00:53]} 21. Bb3 {[%clk 0:01:03]}  Rxb3 {[%clk 0:00:51]} 0-1


[Site "https://www.chess.com"]

[Event "Titled Tuesday Blitz March 07 Late 2023"]
[White "Ezat, Mohamed"]
[Black "Needleman, Alejandro"]
[WhiteFideId "10600906"]
[BlackFideId "100730"]
[WhiteElo "2386"]
[BlackElo "2230"]
[Result "1-0"]
[Round "11"]
[TimeControl "180+2"]
[Date "2023.03.07"]
[WhiteClock "0:02:15"]
[BlackClock "0:01:07"]

1. d4 {[%clk 0:02:55]}  c5 {[%clk 0:02:59]} 2. d5 {[%clk 0:02:53]}  Nf6 {[%clk 0:03:00]} 3. Nc3 {[%clk 0:02:53]}  b5 {[%clk 0:03:00]} 4. Nxb5 {[%clk 0:02:50]}  g6 {[%clk 0:02:59]} 5. Nc3 {[%clk 0:02:48]}  Bg7 {[%clk 0:02:59]} 6. e4 {[%clk 0:02:49]}  d6 {[%clk 0:03:00]} 7. Bb5+ {[%clk 0:02:47]}  Bd7 {[%clk 0:02:58]} 8. a4 {[%clk 0:02:47]}  O-O {[%clk 0:02:57]} 9. Nf3 {[%clk 0:02:47]}  Bg4 {[%clk 0:02:56]} 10. Be2 {[%clk 0:02:46]}  Nbd7 {[%clk 0:02:56]} 11. Nd2 {[%clk 0:02:45]}  Bxe2 {[%clk 0:02:54]} 12. Qxe2 {[%clk 0:02:46]}  Rb8 {[%clk 0:02:45]} 13. O-O {[%clk 0:02:46]}  Ne8 {[%clk 0:02:30]} 14. Nc4 {[%clk 0:02:45]}  Nb6 {[%clk 0:02:15]} 15. Na5 {[%clk 0:02:42]}  Nxd5 {[%clk 0:02:15]} 16. Nxd5 {[%clk 0:02:41]}  Qxa5 {[%clk 0:02:10]} 17. Nxe7+ {[%clk 0:02:42]}  Kh8 {[%clk 0:02:10]} 18. Nc6 {[%clk 0:02:42]}  Qc7 {[%clk 0:02:05]} 19. Nxb8 {[%clk 0:02:42]}  Qxb8 {[%clk 0:02:06]} 20. c3 {[%clk 0:02:41]}  Nc7 {[%clk 0:02:05]} 21. Bf4 {[%clk 0:02:39]}  Ne6 {[%clk 0:02:03]} 22. Bg3 {[%clk 0:02:40]}  h5 {[%clk 0:01:59]} 23. Rfd1 {[%clk 0:02:39]}  Rd8 {[%clk 0:01:54]} 24. Qa6 {[%clk 0:02:37]}  Qxb2 {[%clk 0:01:52]} 25. Qxa7 {[%clk 0:02:36]}  Qxc3 {[%clk 0:01:48]} 26. Qxf7 {[%clk 0:02:33]}  Nd4 {[%clk 0:01:39]} 27. Qxg6 {[%clk 0:02:29]}  Ne2+ {[%clk 0:01:19]} 28. Kh1 {[%clk 0:02:29]}  Nxg3+ {[%clk 0:01:19]} 29. hxg3 {[%clk 0:02:28]}  Bd4 {[%clk 0:01:16]} 30. Rac1 {[%clk 0:02:23]}  Qa5 {[%clk 0:01:12]} 31. Qxh5+ {[%clk 0:02:22]}  Kg7 {[%clk 0:01:12]} 32. Rxd4 {[%clk 0:02:19]}  cxd4 {[%clk 0:01:08]} 33. Qxa5 {[%clk 0:02:18]}  Rh8+ {[%clk 0:01:07]} 34. Kg1 {[%clk 0:02:15]} 1-0


[Site "https://www.chess.com"]

[Event "Titled Tuesday Blitz March 07 Late 2023"]
[White "Petrovic, Aleksa"]
[Black "Szente Varga, Fruzsina"]
[WhiteFideId "967629"]
[BlackFideId "712264"]
[WhiteElo "2326"]
[BlackElo "1994"]
[Result "1/2-1/2"]
[Round "11"]
[TimeControl "180+2"]
[Date "2023.03.07"]
[WhiteClock "0:00:12"]
[BlackClock "0:00:22"]

1. d4 {[%clk 0:03:00]}  Nf6 {[%clk 0:02:59]} 2. c4 {[%clk 0:03:00]}  g6 {[%clk 0:02:58]} 3. Nc3 {[%clk 0:03:00]}  Bg7 {[%clk 0:02:59]} 4. e4 {[%clk 0:03:00]}  d6 {[%clk 0:03:00]} 5. Nf3 {[%clk 0:03:00]}  O-O {[%clk 0:03:00]} 6. Be2 {[%clk 0:03:00]}  e5 {[%clk 0:03:00]} 7. O-O {[%clk 0:03:00]}  Nc6 {[%clk 0:02:59]} 8. d5 {[%clk 0:03:01]}  Ne7 {[%clk 0:03:00]} 9. b4 {[%clk 0:03:01]}  a5 {[%clk 0:02:49]} 10. Ba3 {[%clk 0:03:00]}  axb4 {[%clk 0:02:43]} 11. Bxb4 {[%clk 0:03:01]}  b6 {[%clk 0:02:44]} 12. a4 {[%clk 0:03:00]}  Nd7 {[%clk 0:02:31]} 13. a5 {[%clk 0:02:54]}  bxa5 {[%clk 0:02:29]} 14. Rxa5 {[%clk 0:02:50]}  Rxa5 {[%clk 0:02:24]} 15. Bxa5 {[%clk 0:02:51]}  Nc5 {[%clk 0:02:19]} 16. Nb5 {[%clk 0:02:49]}  Nxe4 {[%clk 0:02:13]} 17. Bxc7 {[%clk 0:02:48]}  Qd7 {[%clk 0:02:13]} 18. Bd3 {[%clk 0:02:47]}  Nc3 {[%clk 0:01:56]} 19. Nxc3 {[%clk 0:02:38]}  Qxc7 {[%clk 0:01:56]} 20. Nb5 {[%clk 0:02:32]}  Qd7 {[%clk 0:01:56]} 21. Qe1 {[%clk 0:02:15]}  Ba6 {[%clk 0:01:49]} 22. Nc3 {[%clk 0:01:56]}  Rc8 {[%clk 0:01:42]} 23. Qe2 {[%clk 0:01:50]}  Qc7 {[%clk 0:01:31]} 24. Nd2 {[%clk 0:01:46]}  f5 {[%clk 0:01:22]} 25. Nb5 {[%clk 0:01:34]}  Bxb5 {[%clk 0:01:21]} 26. cxb5 {[%clk 0:01:35]}  Kh8 {[%clk 0:01:05]} 27. Bc4 {[%clk 0:01:30]}  Qa5 {[%clk 0:01:03]} 28. Rb1 {[%clk 0:01:26]}  Bh6 {[%clk 0:00:51]} 29. Nf3 {[%clk 0:01:21]}  Qc3 {[%clk 0:00:49]} 30. Ba2 {[%clk 0:01:11]}  e4 {[%clk 0:00:42]} 31. h4 {[%clk 0:00:55]}  Qa5 {[%clk 0:00:19]} 32. Nd4 {[%clk 0:00:50]}  Bg7 {[%clk 0:00:17]} 33. Ne6 {[%clk 0:00:44]}  Be5 {[%clk 0:00:17]} 34. b6 {[%clk 0:00:41]}  Qa3 {[%clk 0:00:14]} 35. b7 {[%clk 0:00:29]}  Rb8 {[%clk 0:00:14]} 36. h5 {[%clk 0:00:24]}  Qa7 {[%clk 0:00:12]} 37. hxg6 {[%clk 0:00:17]}  hxg6 {[%clk 0:00:13]} 38. Qe3 {[%clk 0:00:13]}  Qxa2 {[%clk 0:00:11]} 39. Qb6 {[%clk 0:00:04]}  Kg8 {[%clk 0:00:05]} 40. Rc1 {[%clk 0:00:03]}  Kf7 {[%clk 0:00:05]} 41. Qc7 {[%clk 0:00:03]}  Qb2 {[%clk 0:00:03]} 42. Rf1 {[%clk 0:00:01]}  Qxb7 {[%clk 0:00:03]} 43. Qxb7 {[%clk 0:00:02]}  Rxb7 {[%clk 0:00:04]} 44. Nd8+ {[%clk 0:00:02]}  Kf6 {[%clk 0:00:04]} 45. Nxb7 {[%clk 0:00:03]}  Nxd5 {[%clk 0:00:04]} 46. Rd1 {[%clk 0:00:03]}  Ke6 {[%clk 0:00:04]} 47. Nd8+ {[%clk 0:00:02]}  Ke7 {[%clk 0:00:02]} 48. Nc6+ {[%clk 0:00:02]}  Ke6 {[%clk 0:00:03]} 49. Nd8+ {[%clk 0:00:02]}  Kd7 {[%clk 0:00:03]} 50. Rxd5 {[%clk 0:00:03]}  Kxd8 {[%clk 0:00:03]} 51. Kf1 {[%clk 0:00:03]}  Ke7 {[%clk 0:00:04]} 52. Ke2 {[%clk 0:00:04]}  Ke6 {[%clk 0:00:05]} 53. Ra5 {[%clk 0:00:04]}  d5 {[%clk 0:00:05]} 54. Ra6+ {[%clk 0:00:04]}  Bd6 {[%clk 0:00:05]} 55. Ke3 {[%clk 0:00:05]}  Ke5 {[%clk 0:00:06]} 56. f4+ {[%clk 0:00:05]}  exf3 {[%clk 0:00:06]} 57. gxf3 {[%clk 0:00:05]}  g5 {[%clk 0:00:07]} 58. f4+ {[%clk 0:00:05]}  gxf4+ {[%clk 0:00:07]} 59. Kf3 {[%clk 0:00:05]}  Bc5 {[%clk 0:00:08]} 60. Ra4 {[%clk 0:00:05]}  Be3 {[%clk 0:00:08]} 61. Ra8 {[%clk 0:00:05]}  d4 {[%clk 0:00:07]} 62. Re8+ {[%clk 0:00:05]}  Kd5 {[%clk 0:00:08]} 63. Rf8 {[%clk 0:00:06]}  Ke6 {[%clk 0:00:08]} 64. Re8+ {[%clk 0:00:06]}  Kd7 {[%clk 0:00:08]} 65. Re5 {[%clk 0:00:06]}  Kd6 {[%clk 0:00:08]} 66. Rxf5 {[%clk 0:00:06]}  d3 {[%clk 0:00:08]} 67. Rf6+ {[%clk 0:00:05]}  Ke5 {[%clk 0:00:08]} 68. Rf8 {[%clk 0:00:05]}  d2 {[%clk 0:00:09]} 69. Rd8 {[%clk 0:00:04]}  Bd4 {[%clk 0:00:09]} 70. Re8+ {[%clk 0:00:03]}  Kd5 {[%clk 0:00:09]} 71. Ke2 {[%clk 0:00:04]}  Be3 {[%clk 0:00:09]} 72. Rd8+ {[%clk 0:00:04]}  Ke4 {[%clk 0:00:10]} 73. Re8+ {[%clk 0:00:04]}  Kd4 {[%clk 0:00:11]} 74. Rd8+ {[%clk 0:00:04]}  Kc3 {[%clk 0:00:11]} 75. Rc8+ {[%clk 0:00:04]}  Kb2 {[%clk 0:00:12]} 76. Rb8+ {[%clk 0:00:05]}  Kc2 {[%clk 0:00:12]} 77. Rc8+ {[%clk 0:00:05]}  Kb3 {[%clk 0:00:13]} 78. Rb8+ {[%clk 0:00:05]}  Kc4 {[%clk 0:00:14]} 79. Rc8+ {[%clk 0:00:06]}  Kd5 {[%clk 0:00:15]} 80. Rd8+ {[%clk 0:00:06]}  Ke5 {[%clk 0:00:16]} 81. Re8+ {[%clk 0:00:07]}  Kf5 {[%clk 0:00:16]} 82. Rf8+ {[%clk 0:00:07]}  Kg6 {[%clk 0:00:16]} 83. Rg8+ {[%clk 0:00:07]}  Kf7 {[%clk 0:00:17]} 84. Rd8 {[%clk 0:00:08]}  Ke7 {[%clk 0:00:17]} 85. Rxd2 {[%clk 0:00:07]}  Bxd2 {[%clk 0:00:17]} 86. Kxd2 {[%clk 0:00:08]}  Kf6 {[%clk 0:00:18]} 87. Ke2 {[%clk 0:00:08]}  Kf5 {[%clk 0:00:18]} 88. Kf3 {[%clk 0:00:09]}  Ke5 {[%clk 0:00:19]} 89. Kf2 {[%clk 0:00:10]}  Ke4 {[%clk 0:00:19]} 90. Ke2 {[%clk 0:00:10]}  f3+ {[%clk 0:00:20]} 91. Kf2 {[%clk 0:00:11]}  Kf4 {[%clk 0:00:20]} 92. Kf1 {[%clk 0:00:11]}  Ke3 {[%clk 0:00:21]} 93. Ke1 {[%clk 0:00:12]}  f2+ {[%clk 0:00:22]} 94. Kf1 {[%clk 0:00:12]}  Kf3 {[%clk 0:00:22]} 1/2-1/2


[Site "https://www.chess.com"]

[Event "Titled Tuesday Blitz March 07 Late 2023"]
[White "Golubev, Mikhail"]
[Black "Eggleston, Thomas A"]
[WhiteFideId "14100983"]
[BlackFideId "412139"]
[WhiteElo "2374"]
[BlackElo "2155"]
[Result "1-0"]
[Round "11"]
[TimeControl "180+2"]
[Date "2023.03.07"]
[WhiteClock "0:00:29"]
[BlackClock "0:00:02"]

1. e4 {[%clk 0:03:00]}  e6 {[%clk 0:02:59]} 2. d4 {[%clk 0:03:00]}  d5 {[%clk 0:03:00]} 3. Nc3 {[%clk 0:03:01]}  Nf6 {[%clk 0:02:59]} 4. e5 {[%clk 0:02:59]}  Nfd7 {[%clk 0:02:59]} 5. f4 {[%clk 0:03:00]}  c5 {[%clk 0:02:59]} 6. Nf3 {[%clk 0:03:00]}  Nc6 {[%clk 0:02:59]} 7. Be3 {[%clk 0:03:00]}  Be7 {[%clk 0:02:59]} 8. Qd2 {[%clk 0:02:57]}  O-O {[%clk 0:02:54]} 9. a3 {[%clk 0:02:45]}  f6 {[%clk 0:02:26]} 10. exf6 {[%clk 0:02:33]}  Nxf6 {[%clk 0:02:15]} 11. dxc5 {[%clk 0:02:32]}  Ng4 {[%clk 0:02:15]} 12. O-O-O {[%clk 0:02:32]}  Nxe3 {[%clk 0:02:13]} 13. Qxe3 {[%clk 0:02:31]}  b6 {[%clk 0:02:09]} 14. cxb6 {[%clk 0:02:28]}  axb6 {[%clk 0:02:09]} 15. Bb5 {[%clk 0:02:09]}  Bc5 {[%clk 0:01:53]} 16. Qd3 {[%clk 0:02:09]}  Ne7 {[%clk 0:01:37]} 17. Ng5 {[%clk 0:02:00]}  Ng6 {[%clk 0:01:31]} 18. g3 {[%clk 0:01:55]}  Bd7 {[%clk 0:01:10]} 19. h4 {[%clk 0:01:34]}  Rf5 {[%clk 0:00:48]} 20. h5 {[%clk 0:01:23]}  Nf8 {[%clk 0:00:43]} 21. h6 {[%clk 0:01:12]}  g6 {[%clk 0:00:43]} 22. Rhe1 {[%clk 0:01:05]}  Bxb5 {[%clk 0:00:32]} 23. Nxb5 {[%clk 0:01:04]}  Qf6 {[%clk 0:00:27]} 24. Kb1 {[%clk 0:01:01]}  Be7 {[%clk 0:00:19]} 25. Nc7 {[%clk 0:00:54]}  Rc8 {[%clk 0:00:07]} 26. Ncxe6 {[%clk 0:00:50]}  Bxa3 {[%clk 0:00:03]} 27. bxa3 {[%clk 0:00:39]}  Rc3 {[%clk 0:00:03]} 28. Qd4 {[%clk 0:00:33]}  Qxd4 {[%clk 0:00:02]} 29. Nxd4 {[%clk 0:00:30]}  Rxg3 {[%clk 0:00:02]} 30. Nxf5 {[%clk 0:00:29]} 1-0


[Site "https://www.chess.com"]

[Event "Titled Tuesday Blitz March 07 Late 2023"]
[White "Einarsson, Halldor Gretar"]
[Black "Ismagilov, Damir"]
[WhiteFideId "2300150"]
[BlackFideId "34199982"]
[WhiteElo "2142"]
[BlackElo "2078"]
[Result "0-1"]
[Round "11"]
[TimeControl "180+2"]
[Date "2023.03.07"]
[WhiteClock "0:00:42"]
[BlackClock "0:00:46"]

1. d4 {[%clk 0:03:00]}  Nf6 {[%clk 0:02:57]} 2. c4 {[%clk 0:02:57]}  e6 {[%clk 0:02:57]} 3. g3 {[%clk 0:02:56]}  d5 {[%clk 0:02:56]} 4. Nf3 {[%clk 0:02:55]}  c6 {[%clk 0:02:56]} 5. Bg2 {[%clk 0:02:54]}  b6 {[%clk 0:02:56]} 6. O-O {[%clk 0:02:53]}  Be7 {[%clk 0:02:57]} 7. Nbd2 {[%clk 0:02:50]}  O-O {[%clk 0:02:54]} 8. Qc2 {[%clk 0:02:50]}  c5 {[%clk 0:02:55]} 9. e4 {[%clk 0:02:38]}  Nc6 {[%clk 0:02:40]} 10. e5 {[%clk 0:02:31]}  Ne8 {[%clk 0:02:20]} 11. cxd5 {[%clk 0:02:30]}  exd5 {[%clk 0:02:19]} 12. dxc5 {[%clk 0:02:27]}  bxc5 {[%clk 0:02:06]} 13. a3 {[%clk 0:02:06]}  Nc7 {[%clk 0:01:48]} 14. h4 {[%clk 0:01:58]}  Ne6 {[%clk 0:01:48]} 15. Rd1 {[%clk 0:01:55]}  Ned4 {[%clk 0:01:39]} 16. Qa4 {[%clk 0:01:27]}  Bf5 {[%clk 0:01:30]} 17. Ne1 {[%clk 0:01:21]}  Nxe5 {[%clk 0:01:21]} 18. Nf1 {[%clk 0:01:18]}  Bg4 {[%clk 0:01:16]} 19. Rxd4 {[%clk 0:01:17]}  cxd4 {[%clk 0:01:11]} 20. Qxd4 {[%clk 0:01:17]}  Bf6 {[%clk 0:01:07]} 21. Qxd5 {[%clk 0:01:15]}  Qxd5 {[%clk 0:01:02]} 22. Bxd5 {[%clk 0:01:14]}  Rad8 {[%clk 0:00:58]} 23. Ne3 {[%clk 0:01:14]}  Be6 {[%clk 0:00:54]} 24. Bxe6 {[%clk 0:01:04]}  fxe6 {[%clk 0:00:54]} 25. f4 {[%clk 0:01:00]}  Nd3 {[%clk 0:00:51]} 26. Nxd3 {[%clk 0:00:59]}  Rxd3 {[%clk 0:00:52]} 27. Kf2 {[%clk 0:00:58]}  Bxb2 {[%clk 0:00:50]} 28. Bxb2 {[%clk 0:00:52]}  Rd2+ {[%clk 0:00:50]} 29. Kf3 {[%clk 0:00:51]}  Rxb2 {[%clk 0:00:51]} 30. Rd1 {[%clk 0:00:46]}  Rb3 {[%clk 0:00:50]} 31. Rd6 {[%clk 0:00:44]}  e5 {[%clk 0:00:45]} 32. Ra6 {[%clk 0:00:42]}  exf4 {[%clk 0:00:46]} 33. gxf4 {[%clk 0:00:42]}  Re8 {[%clk 0:00:46]} 0-1


[Site "https://www.chess.com"]